[Event "FRA-ch Youth 2017"]
[Site "Belfort"]
[Date "2017.04.22"]
[Round "8"]
[White "Haussernot, Cecile"]
[Black "Bureau-Leroyer, Lola"]
[Result "1-0"]
[ECO "B01"]
[WhiteElo "2107"]
[BlackElo "1635"]
[Annotator "NA"]
[PlyCount "75"]
[EventDate "2017.??.??"]
[EventCountry "FRA"]
[SourceTitle "playchess.com"]
[Source "ChessBase"]
[SourceQuality "1"]
[TimeControl "5400+30"]

1. e4 {[%emt 0:00:00]} d5 {[%emt 0:00:06]} 2. exd5 {[%emt 0:00:19]} Qxd5 {[%emt 0:00:08]} 3. Nc3 {[%emt 0:01:03]} Qa5 {[%emt 0:00:15]} 4. d4 {[%emt 0:00:47]} Nf6 {[%emt 0:00:38]} 5. Bc4 {[%emt 0:04:03]} Bf5 {[%emt 0:06:33]} 6. Nf3 {[%emt 0:01:56]} e6 {[%emt 0:02:08]} 7. Bd2 {[%emt 0:02:57] B01: Scandinavian Defence} Bb4 {[%emt 0:01:58]} 8. a3 {[%emt 0:01:17]} Bxc3 $1 {[%emt 0:00:33]} 9. Bxc3 {[%emt 0:00:05] LiveBook: 48 Games} Qb6 {[%emt 0:00:07]} 10. Ne5 {[%emt 0:02:22]} (10. Nh4 Be4 11. Qe2 Nc6 12. O-O-O O-O-O 13. Qe3 h6 14. Rhe1 {½-½ (36) Adams,M (2742)-Laznicka,V (2676) Baku 2015}) 10... Nc6 {[%emt 0:04:38]} 11. O-O {[%emt 0:08:14]} O-O {[%emt 0:04:26]} 12. a4 {[%emt 0:00:59]} a5 {[%emt 0:02:54]} 13. Bb5 {[%emt 0:11:00]} Ne7 $146 (13... Nxe5 14. dxe5 {1-0 (31) Shubin,K (2216)-Panov,M (2187) St Petersburg 2015}) 14. g4 {[%emt 0:01:04]} c6 {[%emt 0:31:46]} 15. Be2 {[%emt 0:02:35]} Bg6 {[%emt 0:07:39]} 16. h4 {[%emt 0:02:16]} Qc7 {[%emt 0:03:47]} (16... h6 $11 {keeps the balance.}) 17. h5 {[%emt 0:02:00]} Be4 {[%emt 0:00:21]} 18. f3 {[%emt 0:00:59]} Bd5 {[%emt 0:00:13]} 19. Be1 {[%emt 0:01:31]} c5 $1 {[%emt 0:01:49]} 20. c4 {[%emt 0:12:40]} cxd4 {[%emt 0:01:32]} 21. Bg3 {[%emt 0:01:20]} Nc6 {[%emt 0:07:45]} 22. cxd5 {[%emt 0:00:37]} Nxe5 {[%emt 0:00:22]} 23. Qxd4 {[%emt 0:00:22]} Nfd7 {[%emt 0:02:32]} 24. d6 {[%emt 0:01:14]} Qc2 {[%emt 0:01:57]} 25. Bxe5 {[%emt 0:06:00]} Qxe2 {[%emt 0:00:27]} 26. Rae1 {[%emt 0:00:46]} Qa6 {[%emt 0:02:07]} 27. Bxg7 {[%emt 0:02:34]} Rfd8 {[%emt 0:00:31]} 28. Bf6 {[%emt 0:01:07]} Nxf6 {[%emt 0:00:57]} 29. Qxf6 {[%emt 0:00:05]} Qxd6 {[%emt 0:00:34]} 30. Re5 {[%emt 0:00:39]} Kf8 {[%emt 0:04:12]} 31. g5 {[%emt 0:00:13]} Qd4+ {[%emt 0:00:15]} 32. Rf2 {[%emt 0:03:38]} Qh4 {[%emt 0:02:10]} 33. Kg2 {[%emt 0:18:17]} Qxh5 {[%emt 0:04:58]} 34. Rxe6 {[%emt 0:05:13]} Kg8 {[%emt 0:00:24]} 35. Re1 {[%emt 0:01:17]} Rd5 {[%emt 0:01:34]} 36. Re5 {[%emt 0:02:55]} Rad8 $2 {[%emt 0:01:15]} (36... Rd1 $11) 37. Rfe2 {[%emt 0:00:31]} Rxe5 {[%emt 0:01:54]} 38. Qxd8+ {[%emt 0:00:07]} 1-0

[Event "FRA-ch Youth 2017"]
[Site "Belfort"]
[Date "2017.04.22"]
[Round "8"]
[White "Heliot, Xabi"]
[Black "Pigeat, Alexandre"]
[Result "0-1"]
[ECO "C15"]
[WhiteElo "2081"]
[BlackElo "2259"]
[Annotator "NA"]
[PlyCount "94"]
[EventDate "2017.??.??"]
[EventCountry "FRA"]
[SourceTitle "playchess.com"]
[Source "ChessBase"]
[SourceQuality "1"]
[TimeControl "5400+30"]

1. e4 {[%emt 0:00:00]} e6 {[%emt 0:00:10]} 2. d4 {[%emt 0:00:00]} d5 {[%emt 0:00:10]} 3. Nc3 {[%emt 0:04:51]} Bb4 {[%emt 0:00:30]} 4. exd5 {[%emt 0:01:26]} exd5 {[%emt 0:00:26]} 5. Bd3 {[%emt 0:00:32]} Nc6 {[%emt 0:05:03]} 6. Nge2 {[%emt 0:01:47]} Nge7 {[%emt 0:03:43]} 7. O-O {[%emt 0:01:29]} Bf5 {[%emt 0:04:31]} 8. Bxf5 {[%emt 0:16:29]} Nxf5 {[%emt 0:00:23] LiveBook: 10 Games} 9. Qd3 {[%emt 0:00:06] C01: French: Exchange Variation} (9. Nf4 Nfe7 10. Qg4 Bxc3 11. bxc3 O-O 12. Ba3 Qc8 13. Qh5 Qd7 14. Rae1 Rfe8 15. Bxe7 Nxe7 16. Re5 c6 {1-0 (54) McShane,L (2652)-Hawkins,J (2590) London 2016}) 9... Nfe7 {[%emt 0:00:25]} 10. Qb5 {[%emt 0:04:29]} a6 $146 {[%emt 0:00:39]} (10... O-O 11. Bg5 f6 12. Bf4 a6 13. Qd3 Ng6 14. Rfe1 Qd7 {0-1 (38) Mamyrbay,A (2128)-Suleymenov,A (2271) Pavlodar 2015}) 11. Qd3 {[%emt 0:01:14]} O-O {[%emt 0:09:38]} 12. Bg5 {[%emt 0:09:19]} f6 {[%emt 0:03:12]} 13. Be3 {[%emt 0:00:03]} Qd7 {[%emt 0:01:37]} 14. Na4 {[%emt 0:07:17]} b6 {[%emt 0:07:02]} 15. a3 {[%emt 0:03:17]} Bd6 {[%emt 0:00:27]} 16. c4 {[%emt 0:02:39]} dxc4 {[%emt 0:04:08]} 17. Qxc4+ {[%emt 0:00:05]} Kh8 {[%emt 0:00:14]} 18. Nac3 {[%emt 0:01:08]} Nf5 {[%emt 0:02:56]} 19. Qd3 {[%emt 0:06:45]} Rfe8 {[%emt 0:08:38]} 20. Rac1 {[%emt 0:03:15]} Nce7 {[%emt 0:09:04]} 21. Ne4 {[%emt 0:08:45]} Ng6 {[%emt 0:08:04]} 22. Nxd6 {[%emt 0:00:43]} cxd6 {[%emt 0:01:09]} 23. Nf4 {[%emt 0:01:48]} Ngh4 {[%emt 0:07:11]} 24. Rc3 {[%emt 0:07:09]} g5 {[%emt 0:05:00]} 25. Nh5 {[%emt 0:01:50]} Qf7 {[%emt 0:00:40]} ({Weaker is} 25... Nxe3 26. fxe3 f5 27. g3 $16) 26. Qd1 {[%emt 0:01:43]} b5 {[%emt 0:09:51]} (26... Qd5 $15 27. Qg4 Re4 28. Nxf6 Rxg4 29. Nxd5 Rxg2+ 30. Kh1 Rf8) 27. g3 {[%emt 0:06:51]} Rg8 $1 {[%emt 0:05:25]} 28. gxh4 {[%emt 0:06:10]} gxh4+ {[%emt 0:00:08]} 29. Kh1 {[%emt 0:00:13]} Qd5+ {[%emt 0:00:02]} 30. f3 {[%emt 0:00:05]} Nxe3 {[%emt 0:00:28]} 31. Rxe3 {[%emt 0:00:16]} Qxh5 {[%emt 0:00:02]} 32. d5 {[%emt 0:01:46]} Rg7 {[%emt 0:00:48]} 33. f4 {[%emt 0:00:55]} Qh6 {[%emt 0:01:00]} 34. Re6 {[%emt 0:01:03]} Rag8 {[%emt 0:00:02]} ({But not} 34... Qg6 35. Qf3 $17) 35. Qf3 {[%emt 0:00:45]} Qg6 {[%emt 0:00:56]} 36. Qf2 {[%emt 0:01:10]} h3 {[%emt 0:00:35]} 37. Rfe1 {[%emt 0:00:33]} Qd3 {[%emt 0:00:37]} 38. Qe3 {[%emt 0:00:28]} (38. R6e3 {only move.} Qd4 39. Qe2) 38... Qxd5+ 39. Qe4 Qc5 {[%emt 0:01:21]} 40. Qe3 $19 {[%emt 0:00:18]} Qc2 {[%emt 0:00:35]} 41. Qf3 {[%emt 0:01:12]} Qg6 {[%emt 0:01:31]} 42. Qf2 {[%emt 0:00:17]} d5 {[%emt 0:00:52]} 43. f5 {[%emt 0:00:25]} Qf7 {[%emt 0:01:06]} 44. Qf3 {[%emt 0:00:18]} d4 {[%emt 0:00:27]} 45. Qe4 {[%emt 0:00:40]} Rg4 {[%emt 0:00:45]} 46. Qf3 {[%emt 0:00:48]} Qg7 {[%emt 0:00:01]} 47. Qf1 {[%emt 0:00:01]} Qb7+ {[%emt 0:00:11]} 0-1

[Event "FRA-ch Youth 2017"]
[Site "Belfort"]
[Date "2017.04.22"]
[Round "8"]
[White "Popov, Konstantin"]
[Black "Nguyen-Cadoret, Nathan"]
[Result "1-0"]
[ECO "C84"]
[WhiteElo "2026"]
[BlackElo "1930"]
[Annotator "NA"]
[PlyCount "93"]
[EventDate "2017.??.??"]
[EventCountry "FRA"]
[SourceTitle "playchess.com"]
[Source "ChessBase"]
[SourceQuality "1"]
[TimeControl "5400+30"]

1. e4 {[%emt 0:00:00]} e5 {[%emt 0:00:06]} 2. Nf3 {[%emt 0:01:03]} Nc6 {[%emt 0:00:09]} 3. Bb5 {[%emt 0:00:47]} a6 {[%emt 0:00:08]} 4. Ba4 {[%emt 0:00:58]} Nf6 {[%emt 0:00:12]} 5. O-O {[%emt 0:00:50]} Be7 {[%emt 0:00:20]} 6. d3 {[%emt 0:00:48]} b5 {[%emt 0:00:07]} 7. Bb3 {[%emt 0:00:11]} d6 {[%emt 0:00:13]} 8. a4 {[%emt 0:01:20]} Bb7 {[%emt 0:00:21]} 9. Nbd2 {[%emt 0:02:09]} O-O {[%emt 0:00:40]} 10. Re1 {[%emt 0:00:30]} Na5 {[%emt 0:01:30]} 11. Ba2 {[%emt 0:01:51]} bxa4 {[%emt 0:00:55] C88: Closed Ruy Lopez: Anti-Marshall Systems} (11... c5 12. Nf1 b4 13. Bg5 Rb8 14. N3d2 Nd5 15. Bxe7 Nxe7 16. Ne3 Bc8 17. Qh5 Be6 18. Bxe6 fxe6 19. Nec4 Nxc4 20. Nxc4 {0-1 (33) Shirov,A (2679)-Gledura,B (2585) Germany 2017}) 12. Bb1 {[%emt 0:02:27]} c5 $146 {[%emt 0:02:00]} (12... Bc6 13. b4 Nb7 14. c4 Bd7 15. Ba3 c5 16. bxc5 Nxc5 17. Bxc5 dxc5 18. Nxe5 Bd6 19. Nef3 {1-0 (44) Thogersen,R (1953)-Stolberg Rohr,T (2044) Helsingor 2013}) 13. Rxa4 {[%emt 0:01:12]} Bc6 {[%emt 0:00:44]} 14. Ra1 {[%emt 0:00:36]} Qc7 {[%emt 0:01:55]} 15. Ba2 {[%emt 0:03:29]} h6 {[%emt 0:06:03]} 16. Nf1 {[%emt 0:00:45]} Bd7 {[%emt 0:05:36]} 17. Ne3 {[%emt 0:02:52]} Rfb8 {[%emt 0:02:39]} 18. Nh4 {[%emt 0:04:16]} Bf8 {[%emt 0:11:02]} 19. Qf3 {[%emt 0:04:55]} Be6 {[%emt 0:05:18]} 20. Nhf5 {[%emt 0:00:14]} Qd8 {[%emt 0:06:48]} 21. Qg3 {[%emt 0:16:33]} Kh7 {[%emt 0:06:58]} 22. f4 {[%emt 0:04:54]} Nh5 {[%emt 0:06:42]} 23. Qg4 {[%emt 0:16:12]} Nxf4 {[%emt 0:00:51]} 24. g3 {[%emt 0:00:31]} Ng6 {[%emt 0:01:09]} 25. Rf1 {[%emt 0:02:11]} Nc6 {[%emt 0:01:31]} 26. h4 {[%emt 0:05:04]} Nge7 $2 {[%emt 0:02:21]} (26... Ra7 $11) 27. h5 {[%emt 0:11:55]} d5 {[%emt 0:10:28]} 28. exd5 {[%emt 0:02:03]} Nxd5 {[%emt 0:00:09]} 29. Qe4 {[%emt 0:00:15]} Rb4 {[%emt 0:05:26]} 30. Nd4+ {[%emt 0:08:22]} f5 {[%emt 0:08:56]} 31. Nxe6 {[%emt 0:00:20]} fxe4 {[%emt 0:01:38]} 32. Nxd8 {[%emt 0:00:10]} Nxe3 {[%emt 0:01:09]} 33. Nxc6 {[%emt 0:02:12]} Nxf1 {[%emt 0:00:30]} 34. Kxf1 {[%emt 0:01:46]} Rb6 {[%emt 0:00:21]} 35. Nxe5 {[%emt 0:00:15]} Rf6+ {[%emt 0:00:49]} 36. Bf4 {[%emt 0:00:31]} Bd6 {[%emt 0:01:11]} 37. Nd7 {[%emt 0:01:39]} Rf5 {[%emt 0:00:11]} 38. dxe4 {[%emt 0:00:23]} Rxh5 {[%emt 0:00:03]} 39. Kg2 {[%emt 0:00:10]} Be7 {[%emt 0:01:26]} 40. Bf7 {[%emt 0:00:32]} g6 {[%emt 0:00:04]} 41. Ne5 {[%emt 0:00:07]} Kg7 {[%emt 0:00:24]} 42. Bd5 {[%emt 0:00:31]} Rf8 {[%emt 0:01:33]} 43. g4 {[%emt 0:00:46]} Rxf4 {[%emt 0:00:16]} 44. gxh5 {[%emt 0:00:06]} gxh5 {[%emt 0:00:28]} 45. Rxa6 {[%emt 0:00:07]} Bf6 {[%emt 0:00:04]} 46. Ra7+ {[%emt 0:00:07]} Kf8 {[%emt 0:00:16]} 47. Ng6+ {[%emt 0:00:08]} 1-0

[Event "FRA-ch Youth 2017"]
[Site "Belfort"]
[Date "2017.04.22"]
[Round "8"]
[White "Afraoui, Anaelle"]
[Black "Bartels, Karina"]
[Result "1/2-1/2"]
[ECO "C00"]
[WhiteElo "1977"]
[BlackElo "1759"]
[Annotator "NA"]
[PlyCount "126"]
[EventDate "2017.??.??"]
[EventCountry "FRA"]
[SourceTitle "playchess.com"]
[Source "ChessBase"]
[SourceQuality "1"]
[TimeControl "5400+30"]

1. e4 {[%emt 0:00:00]} e6 {[%emt 0:00:05]} 2. d4 {[%emt 0:00:00]} a6 {[%emt 0:00:04]} 3. Bd3 {[%emt 0:01:06]} b5 {[%emt 0:00:11]} 4. Nf3 {[%emt 0:00:31]} Bb7 {[%emt 0:00:21]} 5. O-O {[%emt 0:00:41]} Nf6 {[%emt 0:00:06]} 6. Qe2 {[%emt 0:02:47]} c5 {[%emt 0:00:54]} 7. c3 {[%emt 0:01:57]} Nc6 {[%emt 0:01:03]} 8. Nbd2 {[%emt 0:02:52] B00: Queen's Fianchetto Defence, Nimzowitsch Defence} (8. d5 Ne7 9. Bg5 h6 10. Bh4 exd5 11. Bxf6 gxf6 12. exd5 Bxd5 13. c4 bxc4 14. Bxc4 Be6 15. Nc3 Qb6 16. Rad1 {½-½ (27) Polak,T (2513)-Beck,H (2362) Austria 2014}) 8... cxd4 {[%emt 0:02:10]} 9. Nxd4 {[%emt 0:04:20]} Bc5 $146 {[%emt 0:25:14]} (9... Ne5 10. Bc2 Bc5 11. N2b3 Be7 12. Bg5 h6 13. Bxf6 gxf6 14. a4 b4 15. f4 Nc6 16. Nxc6 Bxc6 {½-½ (140) Schwarz,D (2294)-Druska,J (2226) Slovakia 2011}) 10. N2b3 {[%emt 0:02:18]} Bb6 {[%emt 0:01:16]} 11. Bg5 {[%emt 0:07:06]} Qc7 {[%emt 0:07:02]} 12. Rfe1 {[%emt 0:07:47]} d6 {[%emt 0:06:24]} 13. a4 {[%emt 0:02:35]} bxa4 {[%emt 0:16:29]} 14. Rxa4 {[%emt 0:01:05]} Ne5 {[%emt 0:03:09]} 15. Bxa6 {[%emt 0:05:44]} Bxa6 {[%emt 0:05:57]} 16. Rxa6 {[%emt 0:00:26]} Ke7 {[%emt 0:00:47]} (16... Rxa6 $16 17. Qxa6 O-O) 17. Rea1 {[%emt 0:10:46]} Rxa6 {[%emt 0:00:48]} 18. Rxa6 {[%emt 0:03:27]} Nc4 {[%emt 0:00:56]} 19. Ra4 {[%emt 0:03:24]} Rc8 {[%emt 0:01:08]} 20. Ra2 {[%emt 0:02:56]} Qb7 {[%emt 0:01:43]} 21. h3 {[%emt 0:12:37]} h6 {[%emt 0:01:54]} 22. Bxf6+ {[%emt 0:00:14]} gxf6 {[%emt 0:00:01]} 23. Ra1 {[%emt 0:05:38]} Bxd4 {[%emt 0:03:18]} 24. Nxd4 {[%emt 0:01:33]} Qxb2 {[%emt 0:00:21]} 25. Ra7+ {[%emt 0:00:30]} Ke8 {[%emt 0:00:20]} 26. Qd1 {[%emt 0:06:05]} Qxc3 {[%emt 0:04:56]} 27. Nb5 {[%emt 0:02:00]} Qe5 {[%emt 0:00:31]} 28. Qa4 {[%emt 0:02:47]} Kf8 {[%emt 0:00:40]} 29. g3 {[%emt 0:03:11]} Qc5 {[%emt 0:04:03]} 30. Nd4 {[%emt 0:06:06]} Nb6 {[%emt 0:02:41]} 31. Qd1 {[%emt 0:01:29]} Qc1 {[%emt 0:01:18]} 32. Qxc1 Rxc1+ {[%emt 0:00:01]} 33. Kg2 {[%emt 0:00:16]} Rc4 {[%emt 0:02:07]} 34. Nb5 {[%emt 0:00:13]} Rc6 {[%emt 0:02:57]} 35. Ra6 {[%emt 0:00:58]} Ke7 {[%emt 0:00:33]} 36. Kf3 {[%emt 0:00:49]} e5 $14 {[%emt 0:02:27]} 37. Kg4 {[%emt 0:00:56]} Ke6 {[%emt 0:03:39]} 38. Ra7 {[%emt 0:01:03]} d5 {[%emt 0:00:23]} 39. Nc7+ {[%emt 0:00:16]} Kd6 {[%emt 0:00:52]} 40. Nxd5 {[%emt 0:00:09]} Nxd5 {[%emt 0:00:22]} 41. exd5 {[%emt 0:00:06]} Kxd5 {[%emt 0:00:38]} 42. Rxf7 {[%emt 0:00:07]} Ke6 {[%emt 0:00:46]} 43. Rh7 {[%emt 0:00:12]} Rc2 {[%emt 0:00:26]} 44. Kf3 {[%emt 0:01:09]} Rc3+ {[%emt 0:00:22]} 45. Kg2 {[%emt 0:00:16]} e4 {[%emt 0:00:35]} 46. Rxh6 {[%emt 0:00:20]} e3 {[%emt 0:00:19]} 47. fxe3 {[%emt 0:00:24]} Rxe3 {[%emt 0:00:01]} 48. Rh5 {[%emt 0:00:29]} f5 {[%emt 0:00:33]} 49. Rh4 {[%emt 0:00:46]} Kf6 {[%emt 0:00:47]} 50. Rf4 {[%emt 0:00:31]} Kg5 {[%emt 0:00:24]} 51. h4+ {[%emt 0:00:08]} Kg6 {[%emt 0:00:29]} 52. Kf2 {[%emt 0:00:15]} Ra3 {[%emt 0:00:23]} 53. Rb4 {[%emt 0:00:36]} Kh5 {[%emt 0:00:48]} 54. Rb8 {[%emt 0:01:14]} f4 {[%emt 0:01:10]} 55. Rb5+ {[%emt 0:01:41]} Kg4 {[%emt 0:00:15]} 56. Rg5+ {[%emt 0:00:29]} Kh3 {[%emt 0:00:01]} 57. gxf4 {[%emt 0:00:14]} Kxh4 {[%emt 0:00:07]} 58. Rg8 {[%emt 0:00:13]} Rb3 {[%emt 0:01:11]} 59. Ke2 {[%emt 0:00:53]} Ra3 {[%emt 0:00:17]} 60. f5 {[%emt 0:00:37]} Ra5 {[%emt 0:00:25]} 61. f6 {[%emt 0:00:26]} Rf5 {[%emt 0:00:36]} 62. Rf8 {[%emt 0:00:21]} Kg5 {[%emt 0:00:10]} 63. f7 {[%emt 0:00:09]} Kg6 {[%emt 0:00:26]} 1/2-1/2

[Event "FRA-ch Youth 2017"]
[Site "Belfort"]
[Date "2017.04.22"]
[Round "8"]
[White "Rollot, Florence"]
[Black "Imperor, Amelie"]
[Result "1-0"]
[ECO "A30"]
[WhiteElo "1973"]
[BlackElo "1820"]
[Annotator "NA"]
[PlyCount "123"]
[EventDate "2017.??.??"]
[EventCountry "FRA"]
[SourceTitle "playchess.com"]
[Source "ChessBase"]
[SourceQuality "1"]
[TimeControl "5400+30"]

1. c4 {[%emt 0:00:00]} c5 {[%emt 0:00:30]} 2. g3 {[%emt 0:00:00]} Nc6 {[%emt 0:00:15]} 3. Bg2 {[%emt 0:00:00]} e5 {[%emt 0:00:09]} 4. Nc3 {[%emt 0:00:27]} g6 {[%emt 0:00:09]} 5. Nf3 {[%emt 0:00:29]} Bg7 {[%emt 0:00:07]} 6. O-O {[%emt 0:00:21]} Nge7 {[%emt 0:00:03]} 7. Ne1 {[%emt 0:02:59]} d6 {[%emt 0:00:53]} 8. Nc2 {[%emt 0:01:20]} Be6 {[%emt 0:01:49]} 9. Ne3 {[%emt 0:01:27]} O-O {[%emt 0:12:40]} 10. d3 {[%emt 0:02:40]} Rb8 {[%emt 0:08:47]} 11. Ned5 {[%emt 0:16:59]} a6 {[%emt 0:15:57]} 12. a4 {[%emt 0:20:13]} Bxd5 {[%emt 0:08:50] A37: Symmetrical English vs ...g6: 4 Bg2 Bg7 5 Nf3} (12... b6 13. f4 exf4 14. Bxf4 Bxd5 15. Nxd5 Nxd5 16. Bxd5 Nb4 17. Qd2 Nxd5 18. cxd5 b5 19. Bh6 Bxh6 20. Qxh6 {½-½ (28) Grachev,B (2669)-Gabrielian,A (2555) Moscow 2014}) 13. Nxd5 $146 {[%emt 0:03:17]} (13. cxd5 Nb4 14. a5 Kh8 15. Bd2 f5 16. Qb3 b6 17. axb6 Rxb6 18. Qc4 Rb8 19. Na2 a5 20. Rfc1 {½-½ (38) Ciorgovean,I (2112)-Mongescu,V (2016) Baile Felix 2017}) 13... Nxd5 {[%emt 0:00:07]} 14. Bxd5 {[%emt 0:00:31]} Ne7 {[%emt 0:00:23]} 15. Bg2 {[%emt 0:01:48]} d5 {[%emt 0:03:23]} 16. Bg5 {[%emt 0:17:24]} d4 {[%emt 0:05:08]} 17. Qc2 {[%emt 0:07:35]} f5 {[%emt 0:09:00]} 18. Qd2 {[%emt 0:08:13]} Bf6 {[%emt 0:06:41]} 19. Bh6 {[%emt 0:03:02]} Bg7 {[%emt 0:01:49]} 20. Bxg7 {[%emt 0:00:42]} Kxg7 {[%emt 0:00:02]} 21. b4 {[%emt 0:00:26]} b6 {[%emt 0:00:00]} 22. Rfb1 {[%emt 0:01:41]} Qc7 {[%emt 0:01:39]} 23. Rb2 {[%emt 0:03:50]} Nc6 {[%emt 0:04:40]} 24. Bxc6 {[%emt 0:02:01]} Qxc6 {[%emt 0:02:02]} 25. b5 {[%emt 0:02:15]} axb5 {[%emt 0:01:58]} 26. axb5 {[%emt 0:00:34]} Qb7 {[%emt 0:00:07]} 27. Rba2 {[%emt 0:00:19]} Ra8 {[%emt 0:00:13]} 28. Qg5 {[%emt 0:01:40]} h6 {[%emt 0:00:19]} 29. Qd2 {[%emt 0:00:42]} g5 {[%emt 0:01:35]} 30. Ra6 {[%emt 0:00:58]} f4 {[%emt 0:02:54]} 31. Qa2 {[%emt 0:00:36]} fxg3 {[%emt 0:00:19]} 32. hxg3 {[%emt 0:00:30]} Rxa6 {[%emt 0:01:23]} 33. bxa6 {[%emt 0:00:30]} Qf7 {[%emt 0:03:15]} 34. Rf1 {[%emt 0:00:01]} Ra8 {[%emt 0:00:01]} 35. Qa4 {[%emt 0:01:06]} h5 {[%emt 0:05:48]} 36. Qb5 {[%emt 0:00:21]} Qa7 {[%emt 0:00:14]} 37. Ra1 {[%emt 0:00:16]} Qc7 {[%emt 0:00:55]} 38. Rb1 {[%emt 0:00:03]} (38. Kg2 $16) 38... Rb8 {[%emt 0:00:44]} 39. Ra1 {[%emt 0:00:21]} Ra8 {[%emt 0:00:19]} 40. Rb1 $11 {[%emt 0:00:17]} Rb8 {[%emt 0:00:04]} 41. Kg2 {[%emt 0:01:03]} g4 {[%emt 0:01:44]} 42. Rh1 {[%emt 0:00:32]} Qf7 {[%emt 0:00:35]} 43. Qc6 {[%emt 0:00:40]} Rf8 {[%emt 0:00:53]} 44. Qb7 {[%emt 0:00:26]} Qxb7+ {[%emt 0:00:45]} 45. axb7 {[%emt 0:00:01]} Rb8 {[%emt 0:00:04]} 46. Rxh5 {[%emt 0:00:10]} Rxb7 {[%emt 0:00:03]} 47. Rxe5 {[%emt 0:01:34]} Kf6 {[%emt 0:00:02]} 48. Rd5 {[%emt 0:00:35]} Rb8 {[%emt 0:00:57]} 49. Rd6+ {[%emt 0:00:33]} Ke5 {[%emt 0:00:35]} 50. Rc6 {[%emt 0:00:29]} Kf5 {[%emt 0:01:15]} 51. f3 {[%emt 0:00:44]} Re8 {[%emt 0:01:12]} 52. Kf2 {[%emt 0:00:25]} gxf3 {[%emt 0:01:17]} 53. exf3 {[%emt 0:00:26]} Re3 {[%emt 0:00:58]} 54. Rxb6 {[%emt 0:00:08]} Rxd3 {[%emt 0:00:01]} 55. Rc6 {[%emt 0:00:21]} Rd2+ {[%emt 0:00:01]} 56. Ke1 {[%emt 0:00:16]} Ra2 {[%emt 0:01:08]} 57. Rxc5+ {[%emt 0:00:06]} Ke6 {[%emt 0:00:01]} 58. Rd5 {[%emt 0:01:09]} Ra3 {[%emt 0:00:17]} 59. Ke2 {[%emt 0:00:28]} Ra2+ {[%emt 0:01:04]} 60. Kd3 {[%emt 0:00:27]} Ra3+ {[%emt 0:00:14]} 61. Ke4 {[%emt 0:00:31]} Ra8 {[%emt 0:00:51]} 62. Kxd4 {[%emt 0:00:24]} 1-0

[Event "FRA-ch Youth 2017"]
[Site "Belfort"]
[Date "2017.04.22"]
[Round "8"]
[White "Guerin, Juliette"]
[Black "Aubert, Laurane"]
[Result "0-1"]
[ECO "B40"]
[WhiteElo "1945"]
[BlackElo "1998"]
[Annotator "NA"]
[PlyCount "94"]
[EventDate "2017.??.??"]
[EventCountry "FRA"]
[SourceTitle "playchess.com"]
[Source "ChessBase"]
[SourceQuality "1"]
[TimeControl "5400+30"]

1. e4 {[%emt 0:00:00]} c5 {[%emt 0:00:06]} 2. Nf3 {[%emt 0:00:00]} e6 {[%emt 0:00:38]} 3. c3 {[%emt 0:00:00]} Nf6 {[%emt 0:00:12]} 4. e5 {[%emt 0:00:00]} Nd5 {[%emt 0:00:04]} 5. d4 {[%emt 0:00:02]} cxd4 {[%emt 0:00:09]} 6. cxd4 {[%emt 0:00:05]} d6 {[%emt 0:00:18]} 7. Bc4 {[%emt 0:00:09]} Nc6 {[%emt 0:00:44]} 8. O-O {[%emt 0:00:52]} Be7 {[%emt 0:03:11]} 9. Qe2 {[%emt 0:00:14]} O-O {[%emt 0:00:29]} 10. Qe4 {[%emt 0:00:22]} Qc7 {[%emt 0:00:22]} 11. Bd3 {[%emt 0:00:26]} f5 {[%emt 0:00:17] B22: Sicilian: 2 c3} 12. exf6 {[%emt 0:00:09]} Nxf6 {[%emt 0:00:05]} 13. Qe2 {[%emt 0:00:09]} Nb4 {[%emt 0:00:20]} 14. Bc4 {[%emt 0:00:18]} d5 {[%emt 0:00:07]} 15. Bb3 {[%emt 0:00:30]} Nc6 {[%emt 0:01:31]} 16. Nc3 {[%emt 0:04:34]} a6 {[%emt 0:02:56]} 17. Rd1 {[%emt 0:13:34]} Bd6 {[%emt 0:01:14]} 18. h3 {[%emt 0:02:06]} Bd7 {[%emt 0:00:51]} 19. Be3 $146 {[%emt 0:12:54]} (19. Bg5) 19... Rae8 {[%emt 0:04:19]} 20. Rac1 {[%emt 0:00:44]} Qb8 {[%emt 0:01:03]} 21. a3 {[%emt 0:04:34]} Kh8 {[%emt 0:13:57]} 22. Qd3 {[%emt 0:10:50]} Na5 {[%emt 0:09:50]} 23. Bc2 {[%emt 0:04:38]} Nc4 {[%emt 0:02:04]} 24. Rb1 {[%emt 0:00:57]} Nxe3 {[%emt 0:07:08]} 25. Qxe3 {[%emt 0:05:31]} e5 {[%emt 0:10:23]} 26. dxe5 {[%emt 0:04:41]} Bxe5 {[%emt 0:00:12]} 27. Nxe5 {[%emt 0:04:29]} Rxe5 {[%emt 0:01:20]} 28. Qg3 {[%emt 0:02:56]} Qe8 {[%emt 0:06:38]} 29. Rbc1 {[%emt 0:07:03]} Qe7 {[%emt 0:10:18]} 30. f4 {[%emt 0:07:26]} Re3 {[%emt 0:07:00]} 31. Re1 {[%emt 0:00:19]} Re8 {[%emt 0:04:49]} 32. Rxe3 {[%emt 0:01:16]} Qxe3+ {[%emt 0:00:06]} 33. Qxe3 {[%emt 0:00:07]} Rxe3 {[%emt 0:00:04]} 34. Rd1 {[%emt 0:00:24]} Bc6 {[%emt 0:01:19]} 35. Kf2 {[%emt 0:00:46]} Re8 {[%emt 0:00:57]} 36. Rd4 {[%emt 0:01:24]} Kg8 {[%emt 0:03:57]} 37. Bb3 {[%emt 0:00:34]} Rd8 {[%emt 0:00:05]} 38. g4 {[%emt 0:00:25]} Kf8 {[%emt 0:02:47]} 39. g5 {[%emt 0:01:08]} Ng8 {[%emt 0:00:29]} (39... Nd7 $14) 40. Bxd5 {[%emt 0:00:53]} Ne7 {[%emt 0:00:28]} 41. Bxc6 {[%emt 0:03:48]} Rxd4 {[%emt 0:00:08]} 42. Bxb7 {[%emt 0:00:09]} Rd2+ {[%emt 0:02:04]} 43. Ke1 {[%emt 0:02:47]} Rxb2 $17 {[%emt 0:00:21]} 44. Bxa6 {[%emt 0:00:03]} Rb3 {[%emt 0:01:42]} 45. Nb5 {[%emt 0:01:00]} Nd5 {[%emt 0:01:05]} 46. f5 {[%emt 0:01:31]} Rxh3 {[%emt 0:01:03]} 47. a4 {[%emt 0:00:23]} Nb6 {[%emt 0:00:55]} 0-1